{"text_format":"2","workbook":"xlsx","n_sheets":1,"sheets":["BoQ"],"not_rendered":{"charts":0,"images":0,"macros":0,"external_links":1,"defined_names":1,"comments":0,"pivot_tables":0},"unopened":[],"bounds":{"document_bytes":16777216,"sheet_cells":100000,"run_cost":"one","rows_first":2000,"rows_last":500,"rows_between":2000,"halvings":0,"cell_chars":16384,"cell_head_chars":4096},"cells_cut":0,"cells_raw":0,"read":"whole","date_system":"1900"}

{"sheet":"BoQ","index":0,"n_rows":68,"n_cols":7,"rows_kept":68,"cut":false,"hidden":false,"merged":[[63,2,63,5],[64,2,64,5],[65,2,65,5],[66,2,66,5],[67,2,67,5],[56,1,56,5],[60,1,60,6],[61,2,61,5],[62,2,62,5],[53,2,53,6],[46,1,46,5],[48,1,48,5],[47,1,47,6],[51,1,52,1],[51,2,52,2],[51,3,51,4],[51,5,51,6],[50,1,50,5],[39,2,39,4],[34,1,34,6],[42,1,43,1],[42,2,43,2],[42,3,42,4],[42,5,42,6],[41,1,41,6],[31,1,31,5],[35,1,36,1],[35,2,36,2],[35,3,35,4],[35,5,35,6],[25,1,27,1],[25,3,27,3],[25,4,27,4],[25,5,27,5],[25,6,27,6],[10,1,10,5],[1,1,1,6],[13,1,14,1],[13,2,14,2],[13,3,13,4],[13,5,13,6],[12,1,12,6],[2,1,3,1],[2,2,3,2],[2,3,2,4],[22,1,23,1],[22,3,23,3],[22,4,23,4],[22,5,23,5],[22,6,23,6],[15,1,16,1],[15,2,15,6],[16,2,16,6],[17,3,19,3],[17,4,19,4],[2,5,2,6],[4,2,4,6],[5,1,7,1],[20,1,21,1],[20,3,21,3],[20,4,21,4],[20,5,21,5],[20,6,21,6],[17,5,19,5],[17,6,19,6]]}
[]
[null,"PRIPREMNI RADOVI"]
[null,"POZICIJA","OPIS POZICIJE ","JEDINIČNA ",null,"UKUPNA "]
[null,null,null,"MJERA ","CIJENA (KM) ","KOLIČINA ","CIJENA (KM) "]
[null,0,"Koordiniranje sa lokalnim vlastima, javnim ustanovama, prijava gradilišta nadležnim inspekcijama, formiranje dvije table sa potrebnim detaljima o projektu. Ovi radovi u potpunosti padaju na teret Izvođača. "]
[null,1,"Iskolčavanje osovine trase drenažnog kanala u dužini od L= 635,90 m. ","m ",null,635.9,{"$f":"E6*F6","v":0}]
[null,null,"Obnavljanje i premještanje operativnog poligonog vlaka, od P1 (0+000,00) do St.635,90 u dužini od               L= 635,90 m.  "," kom ",null,635.9,{"$f":"E7*F7","v":0}]
[null,null,"Iskolčavanje poprečnih profila duž trase kanala.                                      Ukupno: 17 profila "," kom ",null,17,{"$f":"E8*F8","v":0}]
[null,2,"Sječenje i uklanjanje drveća i šiblja i rastinja u pojasu koridora radova na drenažnom kanalu. Uklanjanje šiblja vršiti mašinski, i deponovati na odgovarajuća mjesta uz trasu da ne smeta radovima. Sječa i uklanjanje drveća Ø 10 do 100 cm obavljati motornom pilom, a vađenje panjeva iz koridora radova vršiti mašinski. Nakon toga se drveće sječe i kreše granje, te deponuje uz trasu regulacije, ali pažljivo da ne smeta izvođenju radova. Odvoz granja, stabala i panjeva na deponiju daljine do 5,00 km. Obračun radova po m2 očišćenog pojasa radova.                  Ukupno : 3.115,91 m2  "," m2 ",null,3115.91,{"$f":"E9*F9","v":0}]
[null,3,"Istraživanje i obilježavanje podzemnih instalacija na terenu prije početka i u toku izvođenja radova u saradnji sa komunalnim radnim organizacijama. Obračun radova po m' drenažnog kanala. - ukupno : 635,90 m' "," m' ",null,635.9,{"$f":"E10*F10","v":0}]
[null,"PRIPREMNI RADOVI UKUPNO: ",{"$nulls":4},{"$f":"SUM(G6:G10)","v":0}]
[]
[null,"GLAVNI RADOVI"]
[null,"POZICIJA","OPIS POZICIJE ","JEDINIČNA ",null,"UKUPNA "]
[null,null,null,"MJERA ","CIJENA (KM) ","KOLIČINA ","CIJENA (KM) "]
[null,0,"Izvođač je u obavezi da u kalkulacije jediničnih cijena za ponuđene pozicije predvidi i sve potrebne aktivnosti i troškove koji se odnose na Izvođačevu tehnologiju izvođenja radova koji obuhvataju (ali se ne ograničavaju na): crpljenje vode tokom izvođenja radova, kontrolna ispitivanja modula stišljivosti podtla i tampon sloja, izradu elaborata koji dokazuju stabilnost objekata tokom izvođenja radova, izradu pristupnih puteva, održavanja i vraćanje pristupnih puteva u prvobitno stanje i sve druge troškove koji su neophodni za bezbjedno i nesmetano odvijanje radova tokom izgradnje kao i na kompletiranju pozicija. "]
[null,null,"Jedinične cijene uključuju sva potrebna ispitivanja materijala i opreme koji se ugrađuju prema glavnom projektu i/ili prema zakonskoj regulativi kao i dostava atesta i sertifikata od akreditovane laboratorije. "]
[null,1,"Mašinsko skidanje humusa na trasi drenažnog kanala. Ovim radovima je obuhvaćeno skidanje humusa u sloju debljine od 20 cm i deponovanje istog van koridora regulacije na daljinu do 20 m. Nakon formiranja drenažnog kanala, humus će se iskoristiti za humuziranje kosina kanala, a višak odvesti na deponiju koju odrede nadležne službe Grada Prijedora uz saglasnost nadzornog organa. Obavezna primjena HTZ mjera. ","m2 ",null,2784.37,{"$f":"E18*F18","v":0}]
[null," ","Obračun radova prema Tabeli br.1 Glavnih zemljanih radova. "]
[null,null,"-ukupno: 2.784,37 m2  "]
[null,2,"Mašinski iskop zemljanog materijala II i III kategorije u širokom otkopu za formiranje drenažnog kanala. Iskopani materijal će se dijelom upotrijebiti za zatrpavanje depresije u zoni profila P14 (0+517,52). Iskop će se vršiti u prirodno vlažnom stanju. Obavezna primjena HTZ mjera. Obračun radova prema Tabeli br.1 Glavnih zemljanih radova  ","m3 ",null,733.72,{"$f":"E21*F21","v":0}]
[null,null,"Ukupna količina: 733,72 m3 "]
[null,3,"Mašinsko, ručno planiranje, dokopavanje dna temeljne jame kanala sa  izbacivanjem suvišnog materijala i nabijanjem podtla do postizanja modula stišljivosti od 20 MPa. Obavezna primjena HTZ mjera. Obračun radova po m2 nabijenog podtla. ","m2 ",null,476.92,{"$f":"E23*F23","v":0}]
[null,null,"635,90 m' x 0,75 m' = 476,92 m2 "]
[null,4,"Izrada tampon sloja šljunka na koji će se izrađivati betonski kanal, debljine 15 cm u dnu i 5 cm na krajevima kosina kanala, sa nabijanjem tampon sloja do postizanja modula stišljivosti od 20 MPa u dnu. Srednji prečnik zrna tampon sloja iznosi 3- 5 cm, Obavezna primjena HTZ mjera.                                 Materijal mora da ima odgovarajuće minerološko-petrografske karakteristike.                                         Obračun radova po m3 ugrađenog tampona.                                                635,90 m' x 0,229 m2 = 145,62 m3 ","m3 ",null,145.62,{"$f":"E25*F25","v":0}]
[null,5,"Nabavka, transport i ugradnja nabijenog betona MB 30, sa otpornošću na mraz M-100, za izgradnju drenažnog kanala. Radovima je obuhvaćena izrada, ugrađivanje i njegovanje svježeg betona. Betoniranje izvoditi u kampadama od 4 m. Obavezna primjena HTZ mjera. ","m3 ",null,164.69,{"$f":"E26*F26","v":0}]
[null,null,"Obračun radova po m3 ugrađenog betona: "]
[null,null,"635,90 m' x 0,259 m2=164,69 m3. "]
[null,6,"Zatrpavanje materijalom iz iskopa sa planiranjem i nabijanjem u slojevima debljine do 50 cm prema nacrtima poprečnih profila u zoni depresije na profilu P14. Obračun radova prema Tabeli Glavnih zemljanih radova. Ukupna količina: 121,28 m3 ","m3 ",null,121.28,{"$f":"E29*F29","v":0}]
[null,7,"Humuziranje i zatravljivanje kosina kanala. Humuziranje će se izvoditi sa privremene gradilišne deponije humusa. Prije nanošenja sloja humusa debljine 15 cm, površine kosina drenažnog kanala treba da su isplanirane do tačnosti +/- 5cm. Po nanošenju humusa, površine zasijati travom. Obavezna primjena HTZ mjera.                                                   Ukupno 1.344,88 m2  ","m2 ",null,1344.88,{"$f":"E30*F30","v":0}]
[null,8,"Utovar i odvoz viška iskopanog materijala na prethodno određenu deponiju u saradnji sa nadležnim gradskim institucijama Grada Prijedor, i saglasnost Nadzornog organa,  na transportnu  daljinu  do  5,00  km. Koeficijent  rastresitosti  1,35. Obavezna primjena HTZ mjera.               Obračun radova po m3 odvezenog materijala:                                           967,58 m3 x 1,35 = 1.306,23 m3 ","m3 ",null,1306.23,{"$f":"E31*F31","v":0}]
[null,"UKUPNO GLAVNI RADOVI:",{"$nulls":4},{"$f":"SUM(G18:G31)","v":0}]
[]
[]
[null,"OBJEKAT ZAOBALNIH VODA 1"]
[null,"POZICIJA","OPIS POZICIJE ","JEDINIČNA ",null,"UKUPNA "]
[null,null,null,"MJERA ","CIJENA (KM) ","KOLIČINA ","CIJENA (KM) "]
[null,1,"Rekonstrukcija ulazne glave objekta zaobalnih voda br.1.                                 Pozicija radova obuhvata:  iskop, ručno planiranje dna temeljne jame u zoni preliva kanala u ulaznu glavu objekta zaobalnih voda, sa nabijanjem do postizanja modula stišljivosti od 20 Mpa. Postavljanje tampon sloja šljunka sa nabijanjem do postizanja modula stišljivosti od 20 MPa, betoniranje zone preliva kanala. Uklanjanje postojećeg bočnog zida  na ulaznoj glavi za prijem vode iz drenažnog kanala prema gabaritima datim u prilogu.                                  Obrada čela spojnice, kanala i postojeće konstrukcije ulazne glave OZV-a, sa unutrašnje strane, vodozaptivnom masom.  Obračun radova u kompletu izvedenih radova. ","Kompl. ",null,1,{"$f":"E38*F38","v":0}]
[null,2,"Rekonstrukcija izlazne glave objekta zaobalnih voda br. 1.                                 Pozicija radova obuhvata:                         •        uklanjanje šiblja i rastinja u površini od 25 m2 u zoni izlazne glave,         •        Iskop i planiranje terena do postizanja gabarita postojećeg nasipa na površini od 25 m2, (u širini od po 2,5 m na lijevu i desnu stranu od izlazne glave objekta zaobalnih voda i dužini od 5 m),                                                   •        demontaža žabljeg poklopca DN           600 mm, pjeskarenje, antikorozivni premaz (2 puta osnovni 2 puta završni premaz na bazi epoksi materijala), ukupna debljina zaštite minimalno 250 µm LŽ žabljeg poklopca, montaža dijelova i postavljanje žabljeg poklopca.      Obračun radova u kompletu izvedenih radova."," Kompl. ",null,1,{"$f":"E39*F39","v":0}]
[null,null,"UKUPNO OBJEKAT ZAOBALNIH VODA BR. 1 : ",null,null,null,{"$f":"SUM(G38:G39)","v":0}]
[]
[null,"OBJEKAT ZAOBALNIH VODA 2"]
[null,"POZICIJA","OPIS POZICIJE ","JEDINIČNA ",null,"UKUPNA "]
[null,null,null,"MJERA ","CIJENA (KM) ","KOLIČINA ","CIJENA (KM) "]
[null,1,"Rekonstrukcija ulazne glave objekta zaobalnih voda br.2.                                  Pozicija radova obuhvata:  iskop, ručno planiranje dna temeljne jame u zoni preliva kanala u ulaznu glavu objekta zaobalnih voda, sa nabijanjem do postizanja modula stišljivosti od 20 Mpa. Postavljanje tampon sloja šljunka sa nabijanjem do postizanja modula stišljivosti od 20 MPa, betoniranje zone preliva kanala. Uklanjanje postojećeg bočnog zida  na ulaznoj glavi za prijem vode iz drenažnog kanala prema gabaritima datim u prilogu.           Obrada čela spojnice, kanala i postojeće konstrukcije ulazne glave OZV-a, sa unutrašnje strane, vodozaptivnom masom. Pozicija obuhvata i postavljanje čelične rešetke dimenzija 122 x 125 cm.  Obračun radova u kompletu izvedenih radova. ","Kompl. ",null,1,{"$f":"E45*F45","v":0}]
[null,2,"Rekonstrukcija izlazne glave objekta zaobalnih voda br. 2.                                   Pozicija radova obuhvata:                         •        uklanjanje šiblja i rastinja u površini od 25 m2 u zoni izlazne glave,    •        Iskop i planiranje terena do postizanja gabarita postojećeg nasipa na površini od 25 m2, (u širini od po 2,5 m na lijevu i desnu stranu od izlazne glave objekta zaobalnih voda i dužini od 5 m),                                                      •        demontaža žabljeg poklopca DN 600 mm, pjeskarenje, antikorozivni premaz (2 puta osnovni 2 puta završni premaz na bazi epoksi materijala), ukupna debljina zaštite minimalno 250 µm LŽ žabljeg poklopca, montaža dijelova i postavljanje žabljeg poklopca.    Obračun radova u kompletu izvedenih radova.   "," Kompl. ",null,1,{"$f":"E46*F46","v":0}]
[null,"UKUPNO OBJEKAT ZAOBALNIH VODA BR. 2 : ",{"$nulls":4},{"$f":"SUM(G45:G46)","v":0}]
[]
[null,"UKUPNO REKONSTRUKCIJA OBJEKATA ZAOBALNIH VODA :",{"$nulls":4},{"$f":"G40+G47","v":0}]
[]
[null,"ZAVRŠNI RADOVI"]
[null,"POZICIJA","OPIS POZICIJE ","JEDINIČNA ",null,"UKUPNA "]
[null,null,null,"MJERA ","CIJENA (KM) ","KOLIČINA ","CIJENA (KM) "]
[null,0,"Izvođač je u obavezi da nakon izvršenih radova sve privremene objekte ukloni o svom trošku i da očisti gradilište. Svu pričinjenu štetu na okolnim objektima koja su posljedica izvođenja radova snosiće Izvođač.  "]
[null,1,"Finalno uređenje površina drenažnog kanala u pojasu od  2m na lijevoj i 0,50 m na desnoj obali (do nožice nasipa), van koridora kanala. U okviru ovih radova obuhvaćeno je: čišćenje okolnog terena, odvoz viška materijala i planiranje terena. Obračun radova po m2.                                                      Ukupno: 2m x 633,32 + 638,65 x 0.5m = 1.585,96 m2 "," m2 ",null,1585.96,{"$f":"E55*F55","v":0}]
[null,2,"Izrada elaborata sa geodetskim snimkom izvedenog objekta drenažnog kanala. Geodetski snimak treba vezati za trigonometrijsku poligonu mrežu. "," kom ",null,1,{"$f":"E56*F56","v":0}]
[null,"UKUPNO ZAVRŠNI RADOVI:",{"$nulls":4},{"$f":"SUM(G55:G56)","v":0}]
[]
[]
[]
[null,"REKAPITULACIJA"]
[null,"Redni  broj ","RADOVI ",null,null,null,"CIJENA (KM) "]
[null,1,"PRIPREMNI RADOVI ",null,null,null,{"$f":"G11","v":0}]
[null,2,"GLAVNI RADOVI ",null,null,null,{"$f":"G32","v":0}]
[null,3,"REKONSTRUKCIJA OBJEKATA ZAOBALNIH VODA ",null,null,null,{"$f":"G49","v":0}]
[null,4,"ZAVRŠNI RADOVI ",null,null,null,{"$f":"G57","v":0}]
[null,null,"UKUPNO (1+2+3+4) : ",null,null,null,{"$f":"SUM(G63:G66)","v":0}]
[null,null,"UKUPNO SA PDV-om: ",null,null,null,{"$f":"G67*1.17","v":0}]